bitfinex-derivatives/quotes_BTCF0:USTF0_20241120
["timestamp","ask_amount","ask_price","bid_price","bid_amount"]
[1732082172397,0.12382323,92542.0,92537.0,0.25620344]
[1732082172708,0.06985023,92538.0,92536.0,0.05559692]
[1732082173006,0.12382523,92538.0,92536.0,0.25800592]
[1732082173202,0.053975,92537.0,92536.0,0.25800592]
[1732082173402,0.053975,92537.0,92536.0,0.00162092]
[1732082174210,0.06985023,92538.0,92534.0,0.256385]
[1732082174505,0.053978,92533.0,92531.0,0.256385]
[1732082174698,0.06985023,92532.0,92531.0,0.256385]
[1732082175103,0.06985023,92532.0,92531.0,0.25633818]
[1732082175607,0.06985023,92532.0,92529.0,0.25633818]
[1732082175809,0.06985023,92532.0,92530.0,0.25633818]
[1732082176208,0.0323,92537.0,92530.0,0.25633818]
[1732082176397,0.3608,92549.0,92536.0,0.06985023]
[1732082176602,0.3608,92549.0,92548.0,0.053969]
[1732082178408,0.3608,92549.0,92544.0,0.19215317]
[1732082178609,0.3608,92549.0,92545.0,0.19215317]
[1732082178911,0.43065023,92549.0,92545.0,0.19215317]
[1732082179112,0.43065023,92549.0,92547.0,0.19215317]
[1732082179505,0.43065023,92549.0,92548.0,0.053969]
[1732082183709,0.43065023,92549.0,92542.0,0.19215317]
[1732082184006,0.43065023,92549.0,92544.0,0.053971]
[1732082185117,0.48461923,92549.0,92544.0,0.053971]
[1732082185415,0.50050046,92549.0,92539.0,0.19215317]
[1732082185609,0.053974,92540.0,92532.0,0.19715317]
[1732082185810,0.053974,92540.0,92528.0,0.61713818]
[1732082185811,0.06985023,92536.0,92531.0,0.19215317]
[1732082186012,0.06985023,92532.0,92530.0,0.19215317]
[1732082186920,0.06985023,92532.0,92531.0,0.24613217]
[1732082187316,0.06985023,92532.0,92531.0,0.053979]
[1732082187715,0.06985023,92532.0,92528.0,0.61869818]
[1732082187716,0.06985023,92537.0,92529.0,0.32618841]
[1732082187912,0.06985023,92537.0,92535.0,0.053976]
[1732082188108,0.06985023,92537.0,92536.0,0.053976]
[1732082188309,0.02324421,92548.0,92537.0,0.053975]
[1732082188526,0.06985023,92546.0,92538.0,0.19214074]
[1732082188722,0.06985023,92541.0,92540.0,0.053974]
[1732082191919,0.06985023,92541.0,92540.0,0.67111218]
[1732082192325,0.06985023,92541.0,92540.0,0.414774]
[1732082192525,0.06985023,92541.0,92540.0,0.67111218]
[1732082192721,0.06985023,92541.0,92540.0,0.31031218]
[1732082192921,0.06985023,92541.0,92540.0,0.053974]
[1732082193126,0.06985023,92541.0,92540.0,0.31031218]
[1732082193431,0.06985023,92541.0,92540.0,0.053974]
[1732082197227,0.05397,92547.0,92543.0,0.053971]
[1732082197530,0.06985023,92544.0,92543.0,0.2461348]
[1732082198032,0.06985023,92544.0,92543.0,0.053971]
[1732082198334,0.12382123,92544.0,92543.0,0.053971]
[1732082199432,0.06985023,92544.0,92543.0,0.053971]
[1732082202521,0.12382123,92544.0,92540.0,0.19216952]
[1732082202721,0.053973,92542.0,92539.0,0.24614352]
[1732082203444,0.053973,92542.0,92540.0,0.19216952]
[1732082203625,0.06985023,92544.0,92540.0,0.19216952]
[1732082203929,0.06985023,92544.0,92540.0,0.24614352]
[1732082205428,0.06985023,92544.0,92535.0,0.25633818]
[1732082205637,0.05398,92529.0,92528.0,0.005]
[1732082205836,0.05398,92529.0,92527.0,0.32097123]
[1732082205837,0.12383023,92529.0,92527.0,0.32097123]
[1732082206135,0.12383023,92529.0,92512.0,0.005]
[1732082206136,0.053982,92527.0,92525.0,0.32042224]
[1732082206342,0.06985023,92529.0,92521.0,0.32042224]
[1732082206531,0.48463423,92522.0,92521.0,0.32042224]
[1732082206726,0.53161023,92522.0,92518.0,0.25643062]
[1732082206945,0.053986,92519.0,92518.0,0.25643062]
[1732082207453,0.53161023,92522.0,92516.0,0.25629348]
[1732082207741,0.053985,92521.0,92520.0,0.19222012]
[1732082208253,0.053985,92521.0,92507.0,0.00162142]
[1732082208254,0.053985,92521.0,92518.0,0.19222012]
[1732082208538,0.053986,92519.0,92518.0,0.19222012]
[1732082208743,0.12383623,92519.0,92518.0,0.19222012]
[1732082209348,0.053986,92518.0,92517.0,0.19222012]
[1732082209552,0.12383623,92518.0,92517.0,0.19222012]
[1732082210347,0.053987,92517.0,92516.0,0.19222012]
[1732082212236,0.053987,92517.0,92515.0,0.19222012]
[1732082212441,0.053987,92517.0,92516.0,0.19222012]
[1732082212950,0.053988,92516.0,92512.0,0.25629348]
[1732082213145,0.1018,92519.0,92512.0,0.25629348]
[1732082213345,0.1018,92519.0,92507.0,0.3221597]
[1732082213346,0.1018,92519.0,92516.0,0.1919789]
[1732082213647,0.1018,92519.0,92514.0,0.053989]
[1732082213648,0.1018,92519.0,92515.0,0.1919789]
[1732082214638,0.053985,92520.0,92516.0,0.053988]
[1732082215145,0.053985,92520.0,92516.0,0.2459669]
[1732082215540,0.053985,92520.0,92516.0,0.053988]
[1732082216355,0.053986,92519.0,92516.0,0.053988]
[1732082216653,0.053987,92518.0,92516.0,0.053988]
[1732082217646,0.053987,92518.0,92516.0,0.2459669]
[1732082218143,0.3608,92533.0,92516.0,0.2459669]
[1732082218144,0.053978,92532.0,92527.0,0.053981]
[1732082218349,0.10464002,92539.0,92527.0,0.19186842]
[1732082218570,0.053976,92536.0,92533.0,0.053977]
[1732082219973,0.053976,92536.0,92534.0,0.053977]
[1732082220669,0.10464002,92539.0,92535.0,0.053977]
[1732082221063,0.053975,92537.0,92535.0,0.053977]
[1732082221269,0.02325702,92544.0,92543.0,0.053972]
[1732082221579,0.053967,92552.0,92545.0,0.053971]
[1732082221773,0.13784002,92555.0,92545.0,0.053971]
[1732082221969,0.053967,92551.0,92545.0,0.053971]
[1732082222284,0.10464002,92548.0,92545.0,0.053971]
[1732082225183,0.10464002,92548.0,92543.0,0.55266842]
[1732082225484,0.15860902,92548.0,92543.0,0.3608]
[1732082225694,0.053971,92544.0,92542.0,0.19186842]
[1732082225870,0.053971,92544.0,92540.0,0.19186842]
[1732082226071,0.10464002,92541.0,92540.0,0.19186842]
[1732082226272,0.10464002,92541.0,92539.0,0.19186842]
[1732082226470,0.10464002,92541.0,92533.0,0.61709348]
[1732082226471,0.10464002,92541.0,92540.0,0.19186842]
[1732082227382,0.053975,92538.0,92537.0,0.19186842]
[1732082227976,0.053975,92538.0,92536.0,0.19186842]
[1732082228183,0.10464002,92537.0,92536.0,0.19186842]
[1732082228567,0.10464002,92537.0,92533.0,0.3608]
[1732082228881,0.053977,92535.0,92533.0,0.3608]
[1732082231590,0.10464002,92546.0,92536.0,0.053976]
[1732082231785,0.10464002,92539.0,92537.0,0.053975]
[1732082232676,0.06987401,92538.0,92537.0,0.053975]
[1732082240089,0.06987401,92538.0,92535.0,0.19186842]
[1732082240489,0.06987401,92538.0,92534.0,0.19186842]
[1732082241401,0.06987401,92538.0,92535.0,0.19186842]
[1732082241897,0.06987401,92538.0,92537.0,0.053975]
[1732082243398,0.06987401,92538.0,92537.0,0.24584342]
[1732082244298,0.06987401,92538.0,92537.0,0.053975]
[1732082247303,0.06987401,92538.0,92537.0,0.31026848]
[1732082247805,0.06987401,92538.0,92537.0,0.053975]
[1732082248389,0.06987401,92538.0,92537.0,0.31026848]
[1732082249392,0.06987401,92538.0,92537.0,0.31051664]
[1732082250606,0.06987401,92538.0,92537.0,0.053975]
[1732082255596,0.06987401,92538.0,92537.0,0.31051664]
[1732082256509,0.06987401,92538.0,92537.0,0.053975]
[1732082256814,0.3608,92545.0,92534.0,0.0332]
[1732082256999,0.3608,92545.0,92544.0,0.053971]
[1732082257200,0.3608,92545.0,92544.0,0.24654111]
[1732082257402,0.3608,92545.0,92544.0,0.053971]
[1732082258104,0.02160695,92566.0,92555.0,0.053965]
[1732082258307,0.48463801,92556.0,92555.0,0.053965]
[1732082259207,0.50764209,92556.0,92555.0,0.053965]
[1732082260107,0.50764209,92556.0,92552.0,0.25671264]
[1732082260298,0.45367809,92556.0,92551.0,0.25671264]
[1732082260500,0.06987401,92564.0,92553.0,0.06987401]
[1732082260697,0.06987401,92564.0,92560.0,0.19236762]
[1732082260901,0.06987401,92564.0,92561.0,0.24632862]
[1732082261101,0.06987401,92564.0,92562.0,0.19236762]
[1732082261298,0.06987401,92564.0,92561.0,0.24632862]
[1732082261502,0.12383401,92564.0,92561.0,0.24632862]
[1732082261903,0.12383401,92564.0,92561.0,0.053961]
[1732082262198,0.12383401,92564.0,92561.0,0.31067364]
[1732082262398,0.12383401,92564.0,92561.0,0.053961]
[1732082262710,0.12383401,92564.0,92562.0,0.3608]
[1732082263104,0.05396,92563.0,92562.0,0.3608]
[1732082263602,0.06987401,92564.0,92561.0,0.19208381]
[1732082263810,0.12383501,92562.0,92561.0,0.19208381]
[1732082264421,0.053961,92561.0,92560.0,0.19208381]
[1732082264607,0.12383501,92561.0,92560.0,0.19208381]
[1732082265215,0.12383501,92561.0,92552.0,0.3608]
[1732082265216,0.06987401,92561.0,92559.0,0.19208381]
[1732082265520,0.053963,92559.0,92558.0,0.19208381]
[1732082265720,0.06987401,92560.0,92555.0,0.19208381]
[1732082266021,0.053964,92556.0,92555.0,0.19208381]
[1732082266410,0.053964,92556.0,92555.0,0.19202975]
[1732082267619,0.053964,92556.0,92552.0,0.3608]
[1732082268408,0.053964,92556.0,92555.0,0.19199674]
[1732082269013,0.053964,92556.0,92552.0,0.3608]
[1732082269322,0.053964,92556.0,92555.0,0.19197912]
[1732082269535,0.053963,92558.0,92555.0,0.19197912]
[1732082269820,0.053964,92556.0,92555.0,0.19197912]
[1732082270320,0.053964,92556.0,92554.0,0.19197912]
[1732082270321,0.053965,92555.0,92554.0,0.19197912]
[1732082271830,0.38421821,92566.0,92554.0,0.19197912]
[1732082272011,0.06987401,92559.0,92557.0,0.053964]
[1732082273025,0.12383701,92559.0,92552.0,0.55433912]
[1732082273320,0.12383701,92559.0,92554.0,0.053965]
[1732082274626,0.12383701,92559.0,92555.0,0.053965]
[1732082276515,0.06987401,92559.0,92557.0,0.053964]
[1732082276711,0.053961,92562.0,92557.0,0.053964]
[1732082277110,0.053961,92562.0,92553.0,0.06987401]
[1732082277314,0.053961,92562.0,92558.0,0.053963]
[1732082278722,0.053962,92561.0,92558.0,0.053963]
[1732082280128,0.053962,92561.0,92553.0,0.06987401]
[1732082280129,0.053962,92561.0,92560.0,0.053962]
[1732082280318,0.06987401,92565.0,92562.0,0.05396]
[1732082280517,0.06987401,92565.0,92558.0,0.06987401]
[1732082280518,0.06987401,92565.0,92563.0,0.05396]
[1732082280917,0.053959,92565.0,92563.0,0.05396]
[1732082281117,0.02341821,92566.0,92558.0,0.26185313]
[1732082281317,0.053961,92562.0,92559.0,0.053962]
[1732082281516,0.053962,92561.0,92559.0,0.053962]
[1732082281922,0.06987401,92565.0,92557.0,0.19197912]
[1732082282121,0.053963,92558.0,92556.0,0.19197912]
[1732082283330,0.053963,92558.0,92557.0,0.19197912]
[1732082284433,0.053963,92558.0,92554.0,0.053965]
[1732082285927,0.053963,92559.0,92553.0,0.25671264]
[1732082286128,0.06987401,92565.0,92553.0,0.25671264]
[1732082286328,0.06987401,92565.0,92560.0,0.1921969]
[1732082286532,0.06987401,92565.0,92559.0,0.1921969]
[1732082286832,0.06987401,92565.0,92552.0,0.43067401]
[1732082286833,0.053963,92559.0,92557.0,0.1921969]
[1732082287035,0.053963,92558.0,92557.0,0.1921969]
[1732082287530,0.053963,92558.0,92552.0,0.43067401]
[1732082287531,0.053963,92558.0,92554.0,0.25671264]
[1732082288427,0.053963,92558.0,92555.0,0.25671264]
[1732082288729,0.06987401,92565.0,92555.0,0.25671264]
[1732082289026,0.053965,92555.0,92553.0,0.19230055]
[1732082290226,0.06987401,92565.0,92553.0,0.19230055]
[1732082290420,0.053963,92559.0,92558.0,0.19233116]
[1732082290620,0.053963,92559.0,92552.0,0.48616001]
[1732082290821,0.053963,92559.0,92552.0,0.74135265]
[1732082291937,0.053963,92558.0,92552.0,0.74135265]
[1732082292433,0.06987401,92564.0,92552.0,0.74135265]
[1732082292434,0.053964,92556.0,92553.0,0.25671264]
[1732082292933,0.08777461,92569.0,92553.0,0.25671264]
[1732082292934,0.053965,92554.0,92553.0,0.25671264]
[1732082293118,0.06987401,92559.0,92552.0,0.3608]
[1732082293119,0.053966,92553.0,92552.0,0.3608]
[1732082308531,0.06987401,92557.0,92545.0,0.32053828]
[1732082308736,0.053971,92545.0,92544.0,0.3608]
[1732082310730,0.053971,92545.0,92544.0,0.37504162]
[1732082310931,0.053971,92545.0,92544.0,1.02587861]
[1732082311447,0.053971,92545.0,92544.0,0.6955799]
[1732082311938,0.053971,92545.0,92544.0,1.02585619]
[1732082312547,0.053971,92545.0,92544.0,0.6955799]
[1732082313548,0.05397,92547.0,92544.0,1.01143154]
[1732082313754,0.05397,92547.0,92546.0,0.06987401]
[1732082322147,0.0636,92549.0,92546.0,0.08421033]
[1732082322346,0.053965,92555.0,92553.0,0.053965]
[1732082322537,0.053963,92558.0,92554.0,0.053965]
[1732082322734,0.053965,92555.0,92552.0,0.43067401]
[1732082323849,0.053965,92555.0,92552.0,0.55310747]
[1732082324256,0.053965,92555.0,92552.0,0.3608]
[1732082325449,0.12384001,92553.0,92552.0,0.3608]
[1732082329851,0.14618432,92553.0,92551.0,0.25640492]
[1732082330050,0.0625,92552.0,92550.0,0.25640492]
[1732082330354,0.053968,92550.0,92549.0,0.25640492]
[1732082330555,0.0625,92552.0,92548.0,0.25640492]
[1732082330556,0.053968,92549.0,92548.0,0.25640492]
[1732082331160,0.0625,92552.0,92547.0,0.25640492]
[1732082331161,0.053969,92548.0,92547.0,0.25640492]
[1732082331454,0.0625,92552.0,92547.0,0.25648536]
[1732082331761,0.053969,92548.0,92547.0,0.25648536]
[1732082332059,0.0625,92552.0,92544.0,0.3608]
[1732082332361,0.053971,92545.0,92544.0,0.3608]
[1732082332657,0.0625,92552.0,92544.0,0.3608]
[1732082332845,0.053967,92551.0,92550.0,0.25647594]
[1732082333245,0.053968,92550.0,92548.0,0.06987401]
[1732082333762,0.053968,92549.0,92548.0,0.06987401]
[1732082342662,0.053968,92549.0,92545.0,0.25666512]
[1732082343160,0.053968,92549.0,92546.0,0.25666512]
[1732082344459,0.053965,92554.0,92547.0,0.053969]
[1732082344662,0.053965,92554.0,92550.0,0.19245676]
[1732082345051,0.12552611,92560.0,92550.0,0.19245676]
[1732082345256,0.0556521,92560.0,92550.0,0.19245676]
[1732082346052,0.053965,92555.0,92550.0,0.19245676]
[1732082346253,0.053966,92554.0,92550.0,0.19245676]
[1732082346865,0.053966,92553.0,92550.0,0.19245676]
[1732082347959,0.053966,92553.0,92551.0,0.25666512]
[1732082349571,0.053966,92553.0,92548.0,0.053969]
[1732082349860,0.053966,92553.0,92552.0,0.25658544]
[1732082350066,0.053966,92553.0,92551.0,0.25658544]
[1732082351864,0.0215965,92577.0,92554.0,0.053965]
[1732082352168,0.0215965,92577.0,92567.0,0.3608]
[1732082352352,0.0215965,92577.0,92567.0,0.61736967]
[1732082352663,0.0215965,92577.0,92567.0,0.3608]
[1732082353362,0.07670106,92569.0,92567.0,0.55306498]
[1732082353758,0.07670106,92569.0,92565.0,0.19226498]
[1732082353950,0.07670106,92569.0,92566.0,0.19226498]
[1732082354267,0.07670106,92569.0,92565.0,0.19226498]
[1732082354656,0.053958,92566.0,92565.0,0.19226498]
[1732082354864,0.053958,92566.0,92564.0,0.06987401]
[1732082355065,0.053958,92566.0,92565.0,0.19223648]
[1732082355269,0.053958,92566.0,92564.0,0.06987401]
[1732082355471,0.053958,92566.0,92565.0,0.19223298]
[1732082356058,0.053958,92566.0,92564.0,0.26210699]
[1732082357966,0.053958,92566.0,92564.0,0.06987401]
[1732082361062,0.38396948,92574.0,92564.0,0.06987401]
[1732082361266,0.02316948,92574.0,92570.0,0.3608]
[1732082361457,0.053953,92575.0,92570.0,0.3608]
[1732082361664,0.053953,92575.0,92574.0,0.06987401]
[1732082362370,0.13222,92580.0,92574.0,0.06987401]
[1732082362770,0.0319,92580.0,92574.0,0.06987401]
[1732082363079,0.0319,92580.0,92571.0,0.053955]
[1732082363080,0.053952,92578.0,92571.0,0.053955]
[1732082363464,0.053952,92578.0,92577.0,0.06987401]
[1732082367472,0.053953,92577.0,92572.0,0.06987401]
[1732082367673,0.053953,92576.0,92572.0,0.06987401]
[1732082368977,0.053953,92575.0,92572.0,0.06987401]
[1732082371765,0.053953,92575.0,92570.0,0.3608]
[1732082371972,0.06987401,92575.0,92570.0,0.3608]
[1732082372178,0.053956,92571.0,92570.0,0.3608]
[1732082375785,0.053956,92571.0,92561.0,0.26196297]
[1732082375786,0.053958,92566.0,92565.0,0.19208896]
[1732082375990,0.053959,92565.0,92564.0,0.19208896]
[1732082376179,0.05396,92564.0,92563.0,0.19208896]
[1732082376373,0.06987401,92569.0,92561.0,0.06987401]
[1732082376374,0.053957,92568.0,92561.0,0.06987401]
[1732082376578,0.053959,92565.0,92564.0,0.19199026]
[1732082377274,0.06987401,92569.0,92564.0,0.19201601]
[1732082377784,0.053959,92565.0,92564.0,0.19201601]
[1732082377983,0.06987401,92569.0,92561.0,0.06987401]
[1732082378180,0.053961,92562.0,92561.0,0.06987401]
[1732082380895,0.053962,92560.0,92559.0,0.19201601]
[1732082381395,0.053963,92559.0,92558.0,0.3608]
[1732082382273,0.053963,92559.0,92558.0,0.55294712]
[1732082382479,0.053963,92559.0,92558.0,0.3608]
[1732082387979,0.053963,92559.0,92556.0,0.06987401]
[1732082388877,0.053963,92558.0,92556.0,0.06987401]
[1732082389476,0.053961,92563.0,92556.0,0.32644368]
[1732082389684,0.053961,92563.0,92562.0,0.06987401]
[1732082394093,0.053961,92563.0,92559.0,0.24609225]
[1732082394278,0.053962,92561.0,92559.0,0.24609225]
[1732082394481,0.053962,92560.0,92559.0,0.24609225]
[1732082396382,0.06987401,92569.0,92559.0,0.24609225]
[1732082396589,0.02273359,92571.0,92559.0,0.24609225]
[1732082396590,0.02273359,92571.0,92562.0,0.053961]
[1732082396887,0.053959,92565.0,92562.0,0.053961]
[1732082397291,0.053957,92569.0,92563.0,0.06987401]
[1732082397491,0.053957,92569.0,92567.0,0.053958]
[1732082398483,0.053954,92574.0,92569.0,0.053956]
[1732082398787,0.053955,92572.0,92570.0,0.053956]
[1732082402697,0.053953,92576.0,92570.0,0.053956]
[1732082402904,0.053953,92576.0,92571.0,0.053956]
[1732082403401,0.053953,92575.0,92571.0,0.053956]
[1732082405190,0.06987401,92574.0,92567.0,0.19213025]
[1732082405382,0.053957,92568.0,92567.0,0.19213025]
[1732082405890,0.06987401,92569.0,92565.0,0.053959]
[1732082406085,0.06987401,92569.0,92568.0,0.19218054]
[1732082407492,0.06987401,92569.0,92567.0,0.19218054]
[1732082407893,0.053957,92568.0,92567.0,0.19218054]
[1732082408191,0.06987401,92569.0,92560.0,0.19216853]
[1732082408394,0.3838276,92577.0,92557.0,0.06987401]
[1732082408395,0.06987401,92564.0,92559.0,0.19216853]
[1732082408592,0.053961,92562.0,92559.0,0.19216853]
[1732082408788,0.06987401,92564.0,92558.0,0.19216853]
[1732082408992,0.06987401,92559.0,92553.0,0.25656967]
[1732082409198,0.053966,92553.0,92552.0,0.3608]
[1732082409702,0.07713089,92553.0,92552.0,0.3608]
[1732082411299,0.053966,92553.0,92552.0,0.3608]
[1732082412395,0.053968,92550.0,92549.0,0.19221567]
[1732082413301,0.053968,92550.0,92543.0,0.31054167]
[1732082413302,0.19371602,92550.0,92543.0,0.25656967]
[1732082413593,0.053974,92540.0,92539.0,0.25656967]
[1732082413795,0.06987401,92540.0,92538.0,0.25656967]
[1732082414001,0.053974,92539.0,92538.0,0.25656967]
[1732082414198,0.06987401,92540.0,92537.0,0.19211376]
[1732082414388,0.12384901,92538.0,92536.0,0.19211277]
[1732082415307,0.053977,92535.0,92534.0,0.55291277]
[1732082415491,0.053977,92535.0,92534.0,0.3608]
[1732082416900,0.06987401,92535.0,92534.0,0.19201583]
[1732082417089,0.06987401,92535.0,92531.0,0.19201583]
[1732082417090,0.053978,92533.0,92531.0,0.19201583]
[1732082417289,0.16995401,92538.0,92527.0,0.19201583]
[1732082417290,0.053979,92531.0,92527.0,0.19201583]
[1732082417490,0.50054802,92532.0,92525.0,0.19201583]
[1732082417491,0.06987401,92528.0,92525.0,0.19201583]
[1732082417798,0.06987401,92526.0,92524.0,0.19201583]
[1732082418001,0.06987401,92525.0,92524.0,0.19201583]
[1732082418201,0.053984,92522.0,92519.0,0.19201583]
[1732082418400,0.06987401,92520.0,92519.0,0.19201583]
[1732082418595,0.06987401,92520.0,92518.0,0.19201583]
[1732082418900,0.06987401,92520.0,92514.0,0.25656967]
[1732082419204,0.053989,92513.0,92511.0,0.25656967]
[1732082419410,0.06987401,92512.0,92510.0,0.25656967]
[1732082419596,0.06987401,92512.0,92510.0,0.60374931]
[1732082419795,0.06987401,92512.0,92510.0,0.02289964]
[1732082419995,0.06987401,92512.0,92509.0,0.0328]
[1732082420200,0.06987401,92512.0,92511.0,0.19160675]
[1732082421303,0.06987401,92512.0,92509.0,0.24753058]
[1732082421703,0.06987401,92512.0,92510.0,0.19160675]
[1732082421914,0.06987401,92512.0,92509.0,0.24753058]
[1732082422205,0.06987401,92512.0,92509.0,0.05592383]
[1732082422598,0.06987401,92512.0,92509.0,0.24753058]
[1732082423201,0.06987401,92512.0,92509.0,0.05592383]
[1732082424117,0.053991,92510.0,92509.0,0.05592383]
[1732082426714,0.053991,92510.0,92509.0,0.24753058]
[1732082427399,0.053991,92510.0,92509.0,0.05592383]
[1732082428206,0.053991,92510.0,92509.0,0.41672383]
[1732082434303,0.053991,92510.0,92509.0,0.3608]
[1732082434502,0.053995,92504.0,92503.0,0.0998]
[1732082434699,0.053995,92504.0,92503.0,0.12292842]
[1732082435103,0.06987401,92505.0,92503.0,0.12292842]
[1732082436113,0.06987401,92505.0,92503.0,0.17692342]
[1732082437413,0.06987401,92505.0,92503.0,0.36853017]
[1732082437920,0.06987401,92505.0,92504.0,0.053995]
[1732082438905,0.053989,92513.0,92503.0,0.12292842]
[1732082439111,0.06987401,92509.0,92508.0,0.414792]
[1732082441420,0.06987401,92509.0,92508.0,0.67136167]
[1732082441924,0.06987401,92509.0,92508.0,0.414792]
[1732082444524,0.06987401,92509.0,92508.0,0.73533028]
[1732082444731,0.05399,92512.0,92508.0,0.68133828]
[1732082445024,0.12386401,92512.0,92508.0,0.68133828]
[1732082445222,0.12386401,92512.0,92509.0,0.64603911]
[1732082445525,0.12386401,92512.0,92509.0,0.32053828]
[1732082445716,0.12386401,92512.0,92511.0,0.053991]
[1732082446823,0.06987401,92512.0,92511.0,0.70018089]
[1732082447220,0.06987401,92512.0,92511.0,0.053991]
[1732082447422,0.06987401,92512.0,92511.0,0.70027295]
[1732082447619,0.06987401,92512.0,92511.0,0.37973467]
[1732082447815,0.06987401,92512.0,92511.0,0.70041405]
[1732082448324,0.06987401,92512.0,92511.0,0.37973467]
[1732082448825,0.07527401,92529.0,92524.0,0.053983]
[1732082449025,0.12385401,92529.0,92524.0,0.053983]
[1732082449924,0.0608,92534.0,92522.0,0.06987401]
[1732082450124,0.0367,92544.0,92533.0,0.3608]
[1732082450311,0.06987401,92542.0,92541.0,0.053973]
[1732082450516,0.0313,92544.0,92543.0,0.053972]
[1732082451414,0.05517051,92549.0,92543.0,0.06987401]
[1732082451415,0.00162148,92549.0,92543.0,0.06987401]
[1732082451623,0.00162148,92549.0,92548.0,0.31585508]
[1732082451919,0.00162148,92549.0,92548.0,0.12384301]
[1732082452424,0.00162148,92549.0,92548.0,0.24580108]
[1732082453022,0.00162148,92549.0,92548.0,0.053969]
[1732082453630,0.00162148,92549.0,92548.0,0.12384301]
[1732082455018,0.116961,92563.0,92555.0,0.053965]
[1732082455327,0.0322,92563.0,92555.0,0.48463901]
[1732082456529,0.06987401,92560.0,92555.0,0.414765]
[1732082458625,0.053961,92562.0,92555.0,0.414765]
[1732082458927,0.12383501,92562.0,92555.0,0.414765]
[1732082459934,0.12383501,92562.0,92555.0,0.4380649]
[1732082460131,0.06987401,92562.0,92555.0,0.4380649]
[1732082460525,0.06987401,92562.0,92555.0,0.0772649]
[1732082460935,0.053962,92561.0,92555.0,0.0772649]
[1732082461124,0.0322,92563.0,92547.0,0.09948]
[1732082461125,0.06987401,92557.0,92547.0,0.09948]
[1732082461321,0.06987401,92551.0,92547.0,0.09948]
[1732082462034,0.084065,92554.0,92547.0,0.153449]
[1732082462353,0.07031401,92556.0,92551.0,0.3608]
[1732082462528,0.00044,92556.0,92555.0,0.053965]
[1732082463739,0.12383601,92561.0,92555.0,0.053965]
[1732082466242,0.0322,92563.0,92557.0,0.06987401]
[1732082466438,0.0322,92563.0,92558.0,0.053963]
[1732082468134,0.0322,92563.0,92559.0,0.053962]
[1732082468641,0.053961,92562.0,92559.0,0.053962]
[1732082469034,0.0322,92563.0,92551.0,0.43067401]
[1732082469238,0.06987401,92561.0,92555.0,0.053965]
[1732082469933,0.12383601,92561.0,92555.0,0.053965]
[1732082470132,0.06987401,92561.0,92551.0,0.43067401]
[1732082470443,0.06987401,92561.0,92551.0,0.48464101]
[1732082470444,0.053963,92558.0,92551.0,0.48464101]
[1732082471239,0.053963,92558.0,92552.0,0.053966]
[1732082472142,0.053968,92550.0,92546.0,0.06987401]
[1732082472342,0.06987401,92555.0,92546.0,0.12384401]
[1732082472541,0.053967,92552.0,92546.0,0.12384401]
[1732082472745,0.06987401,92555.0,92546.0,0.12384401]
[1732082473041,0.053967,92551.0,92546.0,0.12384401]
[1732082475240,0.053967,92551.0,92546.0,0.05397]
[1732082476543,0.053967,92551.0,92546.0,0.24580208]
[1732082476945,0.06987401,92551.0,92546.0,0.19183208]
[1732082477129,0.05397,92547.0,92545.0,0.02253257]
[1732082477441,0.05397,92547.0,92545.0,0.26150722]
[1732082477747,0.05397,92547.0,92545.0,0.06987401]
[1732082478241,0.06987401,92551.0,92543.0,0.3608]
[1732082478442,0.06987401,92546.0,92542.0,0.19181344]
[1732082478632,0.053972,92543.0,92541.0,0.19181344]
[1732082478833,0.053972,92543.0,92541.0,0.26168745]
[1732082479341,0.053972,92543.0,92541.0,0.06987401]
[1732082479543,0.053972,92543.0,92542.0,0.19192186]
[1732082480046,0.053972,92543.0,92541.0,0.06987401]
[1732082480047,0.053969,92548.0,92541.0,0.06987401]
[1732082480234,0.053969,92548.0,92545.0,0.1919191]
[1732082480436,0.053969,92548.0,92547.0,0.1919191]
[1732082480635,0.053969,92548.0,92546.0,0.1919191]
[1732082481048,0.05397,92547.0,92546.0,0.1919191]
[1732082481246,0.06987401,92550.0,92546.0,0.19202801]
[1732082481438,0.06987401,92550.0,92545.0,0.19202801]
[1732082481643,0.3608,92555.0,92545.0,0.19202801]
[1732082481837,0.06987401,92549.0,92547.0,0.19202801]
[1732082482032,0.06987401,92549.0,92546.0,0.05397]
[1732082482245,0.053967,92551.0,92546.0,0.05397]
[1732082482440,0.053968,92550.0,92548.0,0.19202433]
[1732082483137,0.06987401,92549.0,92545.0,0.3608]
[1732082483644,0.12384301,92549.0,92545.0,0.5528266]
[1732082483848,0.12384301,92549.0,92545.0,0.3608]
[1732082484237,0.12384301,92549.0,92545.0,0.5528266]
[1732082484438,0.12384301,92549.0,92545.0,0.3608]
[1732082484949,0.06987401,92549.0,92545.0,0.3608]
[1732082485145,0.06987401,92549.0,92547.0,0.053969]
[1732082487350,0.06987401,92549.0,92547.0,0.07693543]
[1732082489654,0.053968,92550.0,92547.0,0.26896203]
[1732082489844,0.06987401,92549.0,92547.0,0.07693543]
[1732082490153,0.06987401,92549.0,92547.0,0.26896203]
[1732082490845,0.06987401,92549.0,92547.0,0.07693543]
[1732082495355,0.06987401,92549.0,92548.0,0.19210896]
[1732082496156,0.053965,92555.0,92552.0,0.053967]
[1732082496362,0.053964,92557.0,92554.0,0.053965]
[1732082496663,0.053964,92557.0,92554.0,0.24607632]
[1732082496863,0.053961,92562.0,92559.0,0.053962]
[1732082498362,0.053961,92562.0,92556.0,0.26198533]
[1732082498363,0.02260713,92567.0,92557.0,0.19211132]
[1732082498661,0.0215958,92568.0,92562.0,0.053961]
[1732082498861,0.05396,92564.0,92562.0,0.053961]
[1732082499561,0.0215958,92568.0,92563.0,0.05396]
[1732082499769,0.05396,92564.0,92563.0,0.05396]
[1732082501067,0.09146981,92568.0,92560.0,0.19211132]
[1732082501068,0.05396,92563.0,92560.0,0.19211132]
[1732082501366,0.053958,92567.0,92562.0,0.053961]
[1732082501566,0.09146981,92568.0,92560.0,0.19211132]
[1732082501759,0.0323,92576.0,92567.0,0.19211132]
[1732082502065,0.053936,92604.0,92566.0,0.43067401]
[1732082502066,0.00162077,92583.0,92581.0,0.053949]
[1732082502255,0.00162077,92583.0,92582.0,0.06987401]
[1732082508760,0.00162077,92583.0,92580.0,0.14619077]
[1732082508963,0.00162077,92583.0,92581.0,0.05395]
[1732082512872,0.00162077,92583.0,92582.0,0.053949]
[1732082520270,0.20444,92600.0,92580.0,0.06987401]